fUSD/lending_fUSD_20250118
["ID","MTS","AMOUNT","RATE_DAILY","PERIOD"]
[349486516,1737213049916,-201.32011447,0.000229,3]
[349486517,1737213049926,-150.0,0.00022915,4]
[349486518,1737213049935,-639.46097246,0.0002294,4]
[349486519,1737213049945,-180.05125378,0.0002294,4]
[349486520,1737213049954,-321.75397639,0.0002294,4]
[349486521,1737213049963,-153.51317873,0.00022968,2]
[349486522,1737213049972,-1877.27964995,0.00022977,2]
[349486523,1737213049981,-639.46097246,0.00022983,4]
[349486524,1737213049991,-180.05125378,0.00022983,4]
[349486525,1737213050001,-321.75397639,0.00022983,4]
[349486526,1737213050010,-250.000001,0.00023,2]
[349486527,1737213050020,-2000.0,0.00023,2]
[349486528,1737213050029,-2000.0,0.00023,2]
[349486529,1737213050038,-2000.0,0.00023,2]
[349486530,1737213050047,-2000.0,0.00023,2]
[349486531,1737213050057,-2000.0,0.00023,2]
[349486532,1737213050066,-2000.0,0.00023,2]
[349486533,1737213050076,-2000.0,0.00023,2]
[349486534,1737213050086,-2000.0,0.00023,2]
[349486535,1737213050095,-2000.0,0.00023,2]
[349486536,1737213050104,-2000.0,0.00023,2]
[349486537,1737213050113,-50034.82,0.00023,3]
[349486538,1737213050122,-681257.5090716,0.00023,2]
[349486539,1737213050229,-1038.5,0.00023,2]
[349486540,1737213050275,-151.0,0.000199,2]
[349486541,1737213050284,-500.245216,0.0002,2]
[349486542,1737213050293,-272247.49046806,0.00023,2]
[349486543,1737213050304,-1152927.4602298,0.00023,2]
[349486544,1737213050318,-12747.99036563,0.00023,2]
[349486545,1737213050330,-1838.3627547,0.00023,2]
[349486546,1737213050341,-1938.6818734,0.00023,2]
[349486547,1737213050352,-407.9232,0.00023,2]
[349486548,1737213052369,-2219.20375216,0.00022184,2]
[349486549,1737213052378,-965.85624834,0.00023,2]
[349486550,1737213052389,-20796.68141575,0.00023,2]
[349486557,1737213431991,1000.0,0.00024,120]
[349486558,1737213486882,1000.0,0.0002021,30]
[349486560,1737213875555,158.69,0.00010137,2]
[349486561,1737213908897,9683.44,0.00012,2]
[349486562,1737213908921,10000.0,0.00012,2]
[349486563,1737213908959,10000.0,0.00012,2]
[349486564,1737213908985,10000.0,0.00012,2]
[349486565,1737213909008,10000.0,0.00012,2]
[349486566,1737213909033,10000.0,0.00012,2]
[349486567,1737213909056,10000.0,0.00012,2]
[349486568,1737213909081,10000.0,0.00012,2]
[349486569,1737213909104,10000.0,0.00012,2]
[349486570,1737213909127,10000.0,0.00012,2]
[349486571,1737213909150,10000.0,0.00012,2]
[349486572,1737213909173,10000.0,0.00012,2]
[349486573,1737213909199,4231846.05983246,0.00012,2]
[349486574,1737213941901,38918.31112571,0.00011,2]
[349486575,1737214079593,5880.0,0.0001,2]
[349486576,1737214079615,106746.3350991,0.0001,2]
[349486578,1737214112773,701196.40898142,0.00011,2]
[349486595,1737214232252,-201.46,0.00012329,2]
[349486596,1737214232262,-2794.64000003,0.00013047,2]
[349486597,1737214232274,-1000.27083213,0.00013047,2]
[349486599,1737214232284,-358.3562963,0.00013047,2]
[349486602,1737214232589,-2203.05264158,0.00013047,2]
[349486603,1737214232599,-166.37,0.00013147,2]
[349486604,1737214232609,-300.0,0.00014887,2]
[349486605,1737214232618,-3586.77735842,0.00014887,2]
[349486606,1737214232748,-8497.1053218,0.00014887,2]
[349486607,1737214232758,-455.43321623,0.00014888,2]
[349486608,1737214232768,-550.0,0.00015,2]
[349486609,1737214232777,-271.90505396,0.000153,2]
[349486610,1737214232786,-1080.53903908,0.000154,2]
[349486611,1737214232796,-271.90505394,0.00015741,2]
[349486612,1737214232805,-271.90505394,0.00016181,2]
[349486613,1737214232815,-519.74317377,0.00016181,2]
[349486614,1737214232824,-550.0,0.0001628,2]
[349486615,1737214232836,-54251.273166,0.00016281,7]
[349486616,1737214232845,-15756.3986049,0.00016281,7]
[349486617,1737214232854,-9374.6857734,0.00016281,7]
[349486618,1737214232864,-15836.15803484,0.00016281,7]
[349486650,1737214238420,-3122.616012,0.00014812,2]
[349486651,1737214238429,-575.54696451,0.00016281,7]
[349486652,1737214238562,-534.64222826,0.00016281,7]
[349486653,1737214239448,-5960.50265429,0.00016281,7]
[349486654,1737214239458,-107812.28274,0.00016281,7]
[349486655,1737214239467,-2621.66451536,0.00016281,7]
[349486656,1737214239476,-27058.7713461,0.00016281,7]
[349486657,1737214239486,-420.0,0.00016295,2]
[349486658,1737214239494,-1141.21,0.00016565,2]
[349486659,1737214239504,-5033.82,0.00016838,2]
[349486660,1737214239512,-600.0,0.00017,2]
[349486661,1737214239521,-2029.2,0.00017047,2]
[349486662,1737214239530,-203.01,0.00017096,2]
[349486663,1737214239539,-1632.0,0.000172,2]
[349486664,1737214239547,-199971.0,0.000175,2]
[349486665,1737214239556,-587.0,0.00017836,2]
[349486666,1737214239565,-577.43,0.00017877,2]
[349486667,1737214239574,-207.46229446,0.000179,2]
[349486668,1737214239582,-5558.0,0.000179,3]
[349486669,1737214239597,-2470.27786935,0.00017955,2]
[349486670,1737214239605,-1070.28,0.00018055,2]
[349486672,1737214239614,-1125.84,0.00018055,2]
[349486674,1737214239623,-3366.99,0.0001823,2]
[349486676,1737214239632,-5558.0,0.000183,5]
[349486678,1737214239641,-159.95366064,0.00018486,2]
[349486680,1737214239650,-2470.27786927,0.00018521,2]
[349486681,1737214239659,-170.13,0.00018603,2]
[349486682,1737214239668,-8302.59,0.00018611,2]
[349486683,1737214239677,-153.614307,0.00018637,10]
[349486684,1737214239686,-250.0,0.0001893,2]
[349486685,1737214239695,-650.0,0.00019,2]
[349486686,1737214239703,-2470.27786927,0.00019087,2]
[349486687,1737214239712,-500.0,0.00019164,2]
[349486688,1737214239722,-500.0,0.00019164,2]
[349486689,1737214239731,-500.0,0.00019164,2]
[349486690,1737214239740,-500.0,0.00019178,2]
[349486691,1737214239748,-500.0,0.00019178,2]
[349486692,1737214239757,-500.0,0.00019178,2]
[349486693,1737214239766,-500.25922085,0.00019178,2]
[349486695,1737214239775,-500.0,0.00019178,2]
[349486697,1737214239784,-500.0,0.00019178,2]
[349486699,1737214239792,-240.89,0.00019178,2]
[349486701,1737214239801,-480.67190715,0.00019178,2]
[349486703,1737214239810,-500.0,0.00019178,2]
[349486705,1737214239819,-500.0,0.00019178,2]
[349486707,1737214239828,-2029.2,0.00019311,2]
[349486709,1737214239840,-500.0,0.00019495,2]
[349486711,1737214239849,-500.0,0.00019495,2]
[349486713,1737214239858,-823.0,0.00019523,2]
[349486715,1737214239867,-501.23741753,0.00019588,2]
[349486716,1737214239876,-159.458,0.00019588,2]
[349486718,1737214239885,-1015.055,0.00019588,2]
[349486720,1737214239894,-519.74317377,0.00019641,2]
[349486723,1737214239905,-2470.27786927,0.00019654,2]
[349486725,1737214239922,-168.12076729,0.000197,2]
[349486726,1737214239934,-168.12076724,0.000197,2]
[349486728,1737214239943,-168.12076724,0.000197,2]
[349486730,1737214239952,-168.12076724,0.000197,2]
[349486732,1737214239961,-168.12076724,0.000197,2]
[349486734,1737214239970,-168.12076724,0.000197,2]
[349486736,1737214239979,-168.12076724,0.000197,2]
[349486738,1737214239987,-168.12076724,0.000197,2]
[349486740,1737214239996,-168.12076724,0.000197,2]
[349486742,1737214240005,-168.12076724,0.000197,2]
[349486744,1737214240014,-168.12076724,0.00019717,2]
[349486746,1737214240022,-1000.0,0.00019726,14]
[349486748,1737214240037,-252.0695139,0.00019808,2]
[349486750,1737214240046,-151.9587179,0.00019808,2]
[349486752,1737214240055,-13393.9952358,0.0001988,2]
[349486754,1737214240064,-207.46229445,0.000199,2]
[349486755,1737214240072,-23900.0,0.00019964,2]
[349486757,1737214240081,-1000.0,0.0002,14]
[349486759,1737214240094,-217.78,0.00020012,2]
[349486761,1737214240103,-160.63,0.00020056,2]
[349486763,1737214240112,-168.12076724,0.00020071,2]
[349486765,1737214240122,-1863.0,0.00020075,2]
[349486767,1737214240131,-1260.0,0.00020075,2]
[349486768,1737214240140,-402.24,0.00020075,2]
[349486770,1737214240149,-820.0,0.00020075,2]
[349486772,1737214240158,-2945.0,0.00020075,2]
[349486774,1737214240167,-650.005,0.00020075,2]
[349486776,1737214240176,-150.0,0.00020075,2]
[349486778,1737214240185,-1216.783,0.00020075,2]
[349486780,1737214240195,-3900.0,0.00020075,2]
[349486782,1737214240205,-1175.0,0.00020075,2]
[349486784,1737214240214,-288.98,0.00020079,2]
[349486786,1737214240223,-1283.83,0.00020102,2]
[349486788,1737214240232,-1000.0,0.00020113,2]
[349486790,1737214240241,-1684.04,0.000202,2]
[349486792,1737214240250,-2470.27786927,0.0002022,2]
[349486794,1737214240260,-1364.2,0.00020223,2]
[349486796,1737214240269,-290.79334981,0.00020223,2]
[349486798,1737214240282,-45047.84665019,0.00020223,2]
[349486800,1737214240290,-250.0,0.00020251,2]
[349486802,1737214240299,-500.0,0.0002026,2]
[349486804,1737214240308,-1000.0,0.00020273,14]
[349486806,1737214240317,-150.0,0.00020309,2]
[349486808,1737214240326,-500.0,0.0002035,2]
[349486810,1737214240336,-500.0,0.0002035,2]
[349486812,1737214240348,-550.11,0.0002035,2]
[349486814,1737214240358,-168.12076724,0.00020425,2]
[349486815,1737214240367,-1500.0,0.00020499,2]
[349486817,1737214240376,-203.01,0.00020515,2]
[349486819,1737214240385,-1000.0,0.00020547,14]
[349486821,1737214240394,-500.0,0.00020687,2]
[349486823,1737214240403,-200.0,0.000207,2]
[349486842,1737214240570,-158.69,0.00020708,2]
[349486844,1737214240587,-168.12076724,0.00020778,2]
[349486846,1737214240600,-2470.27786927,0.00020786,2]
[349486848,1737214240609,-679.30035135,0.00020821,14]
[349486850,1737214240618,-169.29,0.00020928,2]
[349486852,1737214240628,-200.0,0.0002099,2]
[349486854,1737214240641,-200.0,0.0002099,2]
[349486856,1737214240651,-700.0,0.00021,2]
[349486858,1737214240660,-173.51,0.00021041,2]
[349486860,1737214240671,-168.12076724,0.00021132,2]
[349486862,1737214240682,-2470.27786927,0.00021352,2]
[349486864,1737214240691,-500.0,0.00021356,2]
[349486866,1737214240700,-500.0,0.00021356,2]
[349486868,1737214240710,-1152.0,0.00021369,2]
[349486870,1737214240719,-168.12076724,0.00021485,2]
[349486872,1737214240729,-5000.0,0.000215,2]
[349486874,1737214240738,-2029.2,0.00021575,2]
[349486876,1737214240748,-150.99,0.00021757,2]
[349486878,1737214240757,-9999.99,0.00021757,2]
[349486880,1737214240766,-1005.8,0.00021757,2]
[349486882,1737214240775,-150.99,0.00021757,2]
[349486884,1737214240784,-168.12076724,0.00021839,2]
[349486886,1737214240793,-157.198,0.0002185,2]
[349486888,1737214240803,-207.46229445,0.000219,3]
[349486890,1737214240812,-150.0,0.00021918,2]
[349486892,1737214240821,-2470.27786927,0.00021919,2]
[349486894,1737214240831,-348.0,0.00022,2]
[349486896,1737214240844,-5000.0,0.00022,2]
[349486898,1737214240853,-268.0,0.00022,2]
[349486900,1737214240862,-772.68,0.00022055,2]
[349486902,1737214240871,-2071.25683534,0.00022151,2]
[349486904,1737214240880,-168.12076724,0.00022193,2]
[349486906,1737214240889,-597.06,0.00022375,2]
[349486908,1737214240899,-594.5937,0.00022442,2]
[349486910,1737214240908,-500.0,0.00022452,2]
[349486912,1737214240918,-2470.27786927,0.00022485,2]
[349486914,1737214240928,-27701.0,0.00022486,2]
[349486916,1737214240937,-150.0,0.00022495,2]
[349486918,1737214240947,-2110.0,0.000225,2]
[349486920,1737214240956,-5000.0,0.000225,3]
[349486922,1737214240966,-168.12076724,0.00022546,2]
[349486924,1737214240976,-151.0,0.00022553,2]
[349486926,1737214240985,-288.98,0.00022589,2]
[349486928,1737214240994,-1000.0,0.00022627,2]
[349486930,1737214241004,-169.29,0.00022655,2]
[349486932,1737214241013,-150.0,0.0002272,2]
[349486934,1737214241022,-150.0,0.00022722,2]
[349486936,1737214241032,-150.0,0.00022725,2]
[349486938,1737214241044,-150.0,0.00022725,2]
[349486940,1737214241053,-1000.0,0.00022743,2]
[349486942,1737214241063,-3000.0,0.0002277,2]
[349486944,1737214241073,-150.0,0.00022779,2]
[349486946,1737214241083,-150.0,0.00022791,2]
[349486948,1737214241098,-1072.84961384,0.00022799,2]
[349486950,1737214241107,-8174.1399,0.000228,2]
[349486952,1737214241120,-7316.0683,0.000228,2]
[349486954,1737214241130,-581.2378,0.000228,2]
[349486956,1737214241140,-5000.0,0.000228,2]
[349486958,1737214241151,-150.0,0.0002281,2]
[349486960,1737214241160,-150.0,0.00022818,2]
[349486962,1737214241170,-150.0,0.00022821,2]
[349486964,1737214241179,-150.0,0.00022825,2]
[349486966,1737214241189,-150.0,0.00022835,2]
[349486968,1737214241198,-1072.84961384,0.0002285,2]
[349486970,1737214241208,-150.0,0.00022858,2]
[349486972,1737214241217,-150.0,0.00022864,2]
[349486974,1737214241227,-2000.0,0.00022885,2]
[349486976,1737214241236,-1000.0,0.00022898,2]
[349486978,1737214241245,-500.0,0.00022899,2]
[349486980,1737214241254,-500.0,0.00022899,2]
[349486982,1737214241264,-500.0,0.00022899,2]
[349486984,1737214241273,-500.0,0.00022899,2]
[349486986,1737214241283,-500.0,0.00022899,2]
[349486988,1737214241293,-500.0,0.00022899,2]
[349486990,1737214241304,-500.0,0.00022899,2]
[349486992,1737214241313,-500.0,0.00022899,2]
[349486994,1737214241323,-553.53,0.00022899,2]
[349486996,1737214241332,-500.0,0.00022899,2]
[349486998,1737214241346,-500.0,0.00022899,2]
[349487000,1737214241355,-500.0,0.00022899,2]
[349487002,1737214241365,-500.0,0.00022899,2]
[349487004,1737214241374,-500.0,0.00022899,2]
[349487006,1737214241384,-500.0,0.00022899,2]
[349487008,1737214241393,-500.0,0.00022899,2]
[349487010,1737214241403,-500.0,0.00022899,2]
[349487012,1737214241413,-620.43,0.00022899,2]
[349487014,1737214241423,-500.0,0.00022899,2]
[349487016,1737214241432,-500.0,0.00022899,2]
[349487018,1737214241442,-500.0,0.00022899,2]
[349487020,1737214241451,-500.0,0.00022899,2]
[349487021,1737214241460,-500.0,0.00022899,2]
[349487024,1737214241472,-500.0,0.00022899,2]
[349487026,1737214241481,-500.0,0.00022899,2]
[349487028,1737214241491,-500.0,0.00022899,2]
[349487030,1737214241501,-497.82729431,0.00022899,2]
[349487032,1737214241510,-500.0,0.00022899,2]
[349487034,1737214241519,-503.97257605,0.00022899,2]
[349487036,1737214241528,-500.0,0.00022899,2]
[349487038,1737214241537,-500.0,0.00022899,2]
[349487040,1737214241546,-500.0,0.00022899,2]
[349487042,1737214241556,-382.46993294,0.00022899,2]
[349487044,1737214241565,-500.0,0.000229,2]
[349487046,1737214241574,-174.84894612,0.000229,2]
[349487047,1737214241583,-150.0,0.000229,2]
[349487049,1737214241598,-1072.84961384,0.000229,2]
[349487051,1737214241608,-168.12076724,0.000229,2]
[349487053,1737214241617,-55555.0,0.000229,2]
[349487055,1737214241627,-150.0,0.00022906,2]
[349487057,1737214241636,-500.0,0.0002292,2]
[349487059,1737214241645,-286.00364992,0.0002292,2]
[349487061,1737214241654,-500.0,0.0002292,2]
[349487063,1737214241663,-500.0,0.0002292,2]
[349487065,1737214241672,-500.0,0.0002292,2]
[349487067,1737214241681,-500.0,0.0002292,2]
[349487069,1737214241691,-567.21345459,0.0002292,2]
[349487071,1737214241700,-500.0,0.0002292,2]
[349487073,1737214241710,-500.0,0.0002292,2]
[349487075,1737214241719,-539.36392857,0.0002292,2]
[349487077,1737214241728,-500.0,0.0002292,2]
[349487079,1737214241738,-500.0,0.0002292,2]
[349487081,1737214241747,-500.0,0.0002292,2]
[349487083,1737214241756,-500.0,0.0002292,2]
[349487085,1737214241765,-500.0,0.0002292,2]
[349487087,1737214241775,-500.0,0.0002292,2]
[349487089,1737214241783,-500.0,0.0002292,2]
[349487091,1737214241792,-500.0,0.0002292,2]
[349487093,1737214241802,-500.0,0.0002292,2]
[349487095,1737214241811,-500.0,0.0002292,2]
[349487097,1737214241821,-381.14479947,0.0002292,2]
[349487099,1737214241830,-500.0,0.0002292,2]
[349487101,1737214241840,-500.0,0.0002292,2]
[349487103,1737214241851,-523.94573234,0.0002292,2]
[349487105,1737214241860,-500.0,0.0002292,2]
[349487107,1737214241869,-500.0,0.0002292,2]
[349487109,1737214241879,-289.0053691,0.0002292,2]
[349487111,1737214241888,-500.0,0.0002292,2]
[349487113,1737214241897,-500.0,0.0002292,2]
[349487115,1737214241907,-500.0,0.0002292,2]
[349487117,1737214241916,-500.0,0.0002292,2]
[349487119,1737214241924,-500.0,0.0002292,2]
[349487121,1737214241933,-523.68,0.0002292,2]
[349487123,1737214241942,-599.2389588,0.0002292,2]
[349487125,1737214241951,-504.36139923,0.0002292,2]
[349487127,1737214241960,-500.0,0.0002292,2]
[349487129,1737214241969,-428.80195845,0.0002292,2]
[349487131,1737214241978,-397.17169156,0.0002292,2]
[349487133,1737214241986,-174.84894611,0.0002294,2]
[349487135,1737214241995,-150.0,0.00022971,2]
[349487137,1737214242005,-150.0,0.00022973,2]
[349487139,1737214242014,-174.84894611,0.0002298,2]
[349487141,1737214242024,-23459.28897996,0.00022981,2]
[349487143,1737214242038,-500.0,0.00022999,2]
[349487146,1737214242048,-500.0,0.00022999,2]
[349487148,1737214242057,-500.0,0.00022999,2]
[349487149,1737214242066,-500.0,0.00022999,2]
[349487151,1737214242077,-500.0,0.00022999,2]
[349487153,1737214242086,-500.0,0.00022999,2]
[349487155,1737214242099,-244.94700084,0.00022999,2]
[349487157,1737214242109,-500.0,0.00022999,2]
[349487159,1737214242119,-500.0,0.00022999,2]
[349487161,1737214242128,-444.18,0.00022999,2]
[349487163,1737214242139,-155.98,0.00022999,2]
[349487165,1737214242151,-378.28,0.00022999,2]
[349487167,1737214242162,-536.35,0.00022999,2]
[349487169,1737214242171,-501.01761524,0.00022999,2]
[349487171,1737214242181,-88403.00848895,0.00023,2]
[349487173,1737214242191,-669.0,0.00023,2]
[349487175,1737214242201,-370.0,0.00023,2]
[349487177,1737214242211,-223.0,0.00023,2]
[349487179,1737214242220,-93869.93908806,0.00023,2]
[349487182,1737214242233,-17399.76183256,0.00023,2]
[349487186,1737214242263,-6519.23317169,0.00023,2]
[349487207,1737214242456,-0.58813267,0.00023,2]
[349487208,1737214242467,-340.894985,0.00023,2]
[349487209,1737214242477,-23078.05938197,0.00023,2]
[349487210,1737214242488,-1000.94600403,0.00023,2]
[349487296,1737214243321,-3208.1,0.00023,2]
[349487332,1737214243641,-2981.20360525,0.00023,2]
[349487614,1737214246252,-500.0,0.00019178,2]
[349487616,1737214246262,-500.0,0.00022899,2]
[349487618,1737214246273,-500.0,0.00022999,2]
[349487620,1737214246282,-588.55687987,0.00022999,2]
[349487622,1737214246292,-428.38579124,0.00023,2]
[349487625,1737214246307,-1670.64409527,0.00023,2]
[349487627,1737214246318,-1488.80495883,0.00023,2]
[349487630,1737214246339,-104096.64988728,0.00023,2]
[349487632,1737214246352,-1649.82511175,0.00023,2]
[349487636,1737214246380,-1666.07800002,0.00023,2]
[349488183,1737214789386,283.79,0.00010137,2]
[349488206,1737215431596,-550.0,0.00015,2]
[349488207,1737215431607,-172.99,0.00015477,2]
[349488208,1737215431617,-637.78060576,0.000161,2]
[349488209,1737215431629,-1915.89619324,0.000161,2]
[349488210,1737215431639,-166.66666668,0.00016181,2]
[349488211,1737215431649,-5575.44017536,0.00016281,2]
[349488212,1737215431658,-5592.65984497,0.00016281,7]
[349488213,1737215431668,-2638.03850004,0.00016417,2]
[349488214,1737215431678,-1468.0,0.000166,2]
[349488215,1737215431687,-280.15831877,0.00016612,2]
[349488216,1737215431697,-283.79,0.00016813,2]
[349488217,1737215431706,-600.0,0.00017,2]
[349488218,1737215431716,-1934.86,0.00017742,2]
[349488219,1737215431725,-650.0,0.00019,2]
[349488220,1737215431735,-173.51,0.00019062,2]
[349488221,1737215431745,-519.74317377,0.00019078,2]
[349488222,1737215431754,-1114.6308,0.00019078,2]
[349488223,1737215431764,-2038.3971,0.00019078,2]
[349488224,1737215431773,-16963.6084,0.00019078,2]
[349488225,1737215431782,-1000.0,0.00019135,2]
[349488226,1737215431793,-500.0,0.00019164,2]
[349488227,1737215431803,-500.0,0.00019164,2]
[349488228,1737215431812,-1295.516,0.00019164,2]
[349488229,1737215431822,-157.825,0.00019164,2]
[349488230,1737215431831,-500.0,0.00019178,2]
[349488231,1737215431843,-500.0,0.00019178,2]
[349488232,1737215431852,-500.0,0.00019178,2]
[349488233,1737215431861,-500.0,0.00019178,2]
[349488234,1737215431871,-500.0,0.00019178,2]
[349488235,1737215431880,-500.0,0.00019178,2]
[349488236,1737215431890,-514.39738367,0.00019178,2]
[349488237,1737215431899,-500.0,0.00019178,2]
[349488238,1737215431908,-500.0,0.00019178,2]
[349488239,1737215431919,-500.0,0.00019178,2]
[349488240,1737215431928,-500.0,0.00019178,2]
[349488241,1737215431939,-500.0,0.00019178,2]
[349488242,1737215431948,-516.67975308,0.00019178,2]
[349488243,1737215431959,-508.74915328,0.00019178,2]
[349488244,1737215431969,-500.0,0.00019178,2]
[349488245,1737215431978,-500.0,0.00019178,2]
[349488246,1737215431988,-500.0,0.00019178,2]
[349488247,1737215431998,-500.0,0.00019178,2]
[349488248,1737215432008,-625.91017664,0.00019178,2]
[349488249,1737215432017,-525.91,0.00019178,2]
[349488250,1737215432027,-512.55437748,0.00019178,2]
[349488251,1737215432037,-500.0,0.00019178,2]
[349488252,1737215432047,-500.0,0.00019178,2]
[349488253,1737215432056,-500.0,0.00019178,2]
[349488254,1737215432065,-511.34474977,0.00019178,2]
[349488255,1737215432075,-500.0,0.00019178,2]
[349488256,1737215432084,-500.0,0.00019178,2]
[349488257,1737215432096,-500.0,0.00019178,2]
[349488258,1737215432106,-500.0,0.00019178,2]
[349488260,1737215432116,-562.30765006,0.00019178,2]
[349488262,1737215432125,-500.0,0.00019178,2]
[349488264,1737215432134,-500.0,0.00019178,2]
[349488266,1737215432144,-500.0,0.00019178,2]
[349488268,1737215432154,-500.0,0.00019178,2]
[349488270,1737215432163,-500.0,0.00019178,2]
[349488272,1737215432172,-500.0,0.00019178,2]
[349488274,1737215432181,-500.0,0.00019178,2]
[349488276,1737215432190,-500.0,0.00019178,2]
[349488278,1737215432199,-500.0,0.00019178,2]
[349488280,1737215432209,-500.0,0.00019178,2]
[349488282,1737215432218,-500.0,0.00019178,2]
[349488284,1737215432227,-500.0,0.00019178,2]
[349488286,1737215432236,-500.0,0.00019178,2]
[349488288,1737215432245,-503.96224883,0.00019178,2]
[349488290,1737215432254,-500.0,0.00019178,2]
[349488292,1737215432264,-500.0,0.00019178,2]
[349488294,1737215432273,-503.14089742,0.00019178,2]
[349488296,1737215432282,-500.0,0.00019178,2]
[349488298,1737215432291,-500.0,0.00019178,2]
[349488300,1737215432300,-500.0,0.00019178,2]
[349488302,1737215432310,-644.44758988,0.00019178,2]
[349488304,1737215432320,-500.0,0.00019178,2]
[349488306,1737215432329,-393.33322717,0.00019178,2]
[349488308,1737215432342,-500.0,0.00019178,2]
[349488312,1737215432351,-500.0,0.00019178,2]
[349488315,1737215432361,-500.0,0.00019178,2]
[349488316,1737215432369,-500.0,0.00019178,2]
[349488318,1737215432378,-500.0,0.00019178,2]
[349488320,1737215432388,-500.0,0.00019178,2]
[349488322,1737215432399,-500.0,0.00019178,2]
[349488324,1737215432409,-500.0,0.00019178,2]
[349488326,1737215432419,-500.0,0.00019178,2]
[349488328,1737215432429,-500.0,0.00019178,2]
[349488330,1737215432439,-500.0,0.00019178,2]
[349488332,1737215432448,-444.1825915,0.00019178,2]
[349488334,1737215432457,-500.0,0.00019178,2]
[349488336,1737215432467,-500.0,0.00019178,2]
[349488338,1737215432476,-500.0,0.00019178,2]
[349488340,1737215432486,-500.0,0.00019178,2]
[349488342,1737215432495,-333.9500028,0.00019178,2]
[349488344,1737215432506,-500.0,0.00019178,2]
[349488346,1737215432515,-500.0,0.00019178,2]
[349488348,1737215432524,-500.0,0.00019178,2]
[349488350,1737215432533,-500.0,0.00019178,2]
[349488352,1737215432543,-500.0,0.00019178,2]
[349488354,1737215432552,-500.0,0.00019178,2]
[349488356,1737215432561,-513.70659968,0.00019178,2]
[349488358,1737215432571,-500.0,0.00019178,2]
[349488360,1737215432580,-500.0,0.00019178,2]
[349488362,1737215432591,-356.87536911,0.00019178,2]
[349488364,1737215432601,-500.0,0.00019178,2]
[349488366,1737215432611,-500.0,0.00019178,2]
[349488368,1737215432621,-500.0,0.00019178,2]
[349488370,1737215432630,-500.0,0.00019178,2]
[349488372,1737215432640,-500.0,0.00019178,2]
[349488374,1737215432650,-500.0,0.00019178,2]
[349488376,1737215432659,-500.0,0.00019178,2]
[349488378,1737215432668,-500.0,0.00019178,2]
[349488380,1737215432677,-500.0,0.00019178,2]
[349488382,1737215432686,-500.0,0.00019178,2]
[349488384,1737215432695,-500.0,0.00019178,2]
[349488386,1737215432705,-500.0,0.00019178,2]
[349488388,1737215432714,-500.0,0.00019178,2]
[349488390,1737215432723,-506.90169708,0.00019178,2]
[349488392,1737215432732,-500.0,0.00019178,2]
[349488394,1737215432741,-500.0,0.00019178,2]
[349488396,1737215432751,-523.14069246,0.00019178,2]
[349488398,1737215432760,-500.0,0.00019178,2]
[349488400,1737215432769,-500.0,0.00019178,2]
[349488402,1737215432779,-500.0,0.00019178,2]
[349488404,1737215432788,-500.0,0.00019178,2]
[349488406,1737215432798,-500.0,0.00019178,2]
[349488408,1737215432807,-500.0,0.00019178,2]
[349488410,1737215432815,-500.0,0.00019178,2]
[349488412,1737215432825,-500.0,0.00019178,2]